bitfinex-derivatives/quotes_BNBF0:USTF0_20250331
["timestamp","ask_amount","ask_price","bid_price","bid_amount"]
[1743392940521,0.30659916,600.13,597.25,0.28919389]
[1743392940718,0.30659916,600.13,597.26,0.28919389]
[1743392940915,0.30659916,600.13,597.27,0.28919389]
[1743392941117,0.30659916,600.13,597.18,2.53489445]
[1743392941118,2.52093128,601.09,597.18,2.53489445]
[1743392941324,0.30660124,601.08,597.19,0.28919595]
[1743392941523,0.29057752,600.12,597.2,0.28919595]
[1743392941723,0.30660124,600.11,597.21,0.28919595]
[1743392941919,2.52093128,600.91,597.36,2.53489445]
[1743392942223,0.30660124,600.9,597.37,0.28919595]
[1743392942419,0.30660124,600.89,597.38,0.28919595]
[1743392942618,0.30660124,600.88,597.39,0.28919595]
[1743392942822,0.30660124,600.87,597.4,0.28919595]
[1743392943121,0.30660124,600.86,597.41,0.28919595]
[1743392943318,2.52093128,600.82,597.46,2.53489445]
[1743392943518,0.30660124,600.81,597.47,0.28919595]
[1743392943718,0.30660124,600.8,597.48,0.28919595]
[1743392943918,0.30660124,600.79,597.49,0.28919595]
[1743392944122,0.30660124,600.78,597.5,0.28919595]
[1743392944318,0.33296706,600.66,597.66,0.33463842]
[1743392944619,0.30660124,600.65,597.67,0.28919595]
[1743392944822,0.30660124,600.65,597.81,0.33455445]
[1743392945018,0.33304469,600.52,597.82,0.28919595]
[1743392945218,0.30660124,600.51,597.82,0.28919595]
[1743392945420,0.3331168,600.39,597.95,0.33447612]
[1743392945626,0.30660124,600.38,597.96,0.28919595]
[1743392946826,0.30660124,600.38,598.07,0.33440901]
[1743392947822,0.33313345,600.36,598.07,0.33440901]
[1743392948027,0.30660124,600.35,598.08,0.2893249]
[1743392948226,0.30660124,600.34,598.09,0.2893249]
[1743392948425,0.30660124,600.33,598.19,0.33434193]
[1743392948724,0.3331612,600.31,598.2,0.2893249]
[1743392948929,0.30660124,600.3,598.2,0.2893249]
[1743392949129,0.30660124,600.29,598.2,0.2893249]
[1743392949330,0.30660124,600.28,598.22,0.33432516]
[1743392949531,2.52093128,600.22,598.22,0.33432516]
[1743392949731,0.33322225,600.2,598.23,0.2893249]
[1743392950032,0.30660124,600.19,598.25,0.33430839]
[1743392950238,0.33323891,600.17,598.26,0.2893249]
[1743392950428,0.30660124,600.16,598.26,0.2893249]
[1743392950633,0.33325002,600.15,598.28,0.33429163]
[1743392950932,0.30660124,600.14,598.29,0.2893249]
[1743392951131,0.30660124,600.14,598.31,0.33427487]
[1743392951332,0.33326112,600.13,598.32,0.2893249]
[1743392951532,0.3066841,600.12,598.34,0.33425811]
[1743392951728,0.33327223,600.11,598.35,0.28927803]
[1743392951931,0.3066841,600.1,598.35,0.28927803]
[1743392952332,0.3066841,600.1,598.37,0.33424135]
[1743392952333,0.33328334,600.09,598.37,0.33424135]
[1743392952532,0.3066841,600.08,598.38,0.28927803]
[1743392952732,0.3066841,600.08,598.4,0.33422459]
[1743392952930,0.3066841,600.08,598.41,0.28927803]
[1743392953232,0.33329444,600.07,598.43,0.33420784]
[1743392953435,0.3066841,600.06,598.44,0.28927803]
[1743392953629,0.33330555,600.05,598.46,0.33419109]
[1743392953835,0.3066841,600.04,598.47,0.28927803]
[1743392954042,0.3066841,600.04,598.49,0.33417433]
[1743392954236,0.33331666,600.03,598.5,0.28927803]
[1743392954430,0.3066841,600.02,598.52,0.33415758]
[1743392954629,0.3066841,600.02,598.53,0.28927803]
[1743392954836,0.3066841,600.02,598.54,0.33414642]
[1743392955029,0.64000632,600.02,598.55,0.28927803]
[1743392955232,0.3066841,600.01,598.56,0.33413525]
[1743392955429,0.3066841,600.01,598.57,0.28927803]
[1743392955632,0.3066841,600.01,598.58,0.33412409]
[1743392955830,0.3066841,600.01,598.59,0.28927803]
[1743392956030,0.3066841,600.01,598.6,0.33411293]
[1743392956634,0.3066841,600.01,598.61,0.2892741]
[1743392956934,0.3066841,600.01,598.62,0.33410176]
[1743392957234,0.3066841,600.01,598.63,0.2892741]
[1743392957536,0.29045505,600.0,598.64,0.3340906]
[1743392957734,0.3066841,599.99,598.64,0.3340906]
[1743392958729,0.3066841,599.99,598.65,0.28927968]
[1743392958730,0.568,599.98,598.65,0.28927968]
[1743392958933,0.3066841,599.97,598.66,0.33407944]
[1743392960435,0.29058965,599.96,598.66,0.33407944]
[1743392960629,0.3066841,599.95,598.66,0.33407944]
[1743392962330,0.3066841,599.94,598.66,0.33407944]
[1743392962534,0.3066841,599.93,598.66,0.33407944]
[1743392962732,0.3066841,599.92,598.66,0.33407944]
[1743392962936,0.3066841,599.97,598.66,0.33407944]
[1743392963136,0.29063941,599.92,598.66,0.33407944]
[1743392963437,0.3066841,599.91,598.66,0.33407944]
[1743392965534,0.2905096,599.9,598.66,0.33407944]
[1743392965736,0.5971937,599.9,598.66,0.33407944]
[1743392965937,0.3066841,599.89,598.66,0.33407944]
[1743392966939,0.2905096,599.9,598.66,0.33407944]
[1743392967541,0.30673394,599.89,598.66,0.33407944]
[1743392968041,0.2905096,599.9,598.66,0.33407944]
[1743392968241,0.30673382,599.89,598.66,0.33407944]
[1743392968542,0.29049505,599.89,598.66,0.33407944]
[1743392974244,0.568,599.98,598.66,0.33407944]
[1743392974938,0.30661172,599.97,598.67,0.28920638]
[1743392975139,0.30661172,599.97,598.68,0.33406828]
[1743392975439,0.30661172,599.97,598.69,0.28920638]
[1743392975639,0.29042232,599.96,598.7,0.33405712]
[1743392975840,0.30661172,599.95,598.71,0.28920638]
[1743392976045,0.29042232,599.96,598.72,0.33404596]
[1743392976444,0.30661861,599.95,598.72,0.33404596]
[1743392976743,0.29042232,599.96,598.72,0.33404596]
[1743392976939,0.30662124,599.95,598.72,0.33404596]
[1743392977143,0.568,599.98,598.72,0.33404596]
[1743392977340,0.30661165,599.97,598.72,0.33404596]
[1743392978545,0.29053507,599.96,598.72,0.33404596]
[1743392978747,0.30661165,599.95,598.72,0.33404596]
[1743392979445,0.29053507,599.96,598.72,0.33404596]
[1743392979947,0.30661552,599.95,598.72,0.33404596]
[1743392980340,0.30661552,599.97,598.73,0.28921419]
[1743392980541,0.30661552,599.96,597.79,0.28921419]
[1743392980745,0.30661552,599.97,597.8,0.28921419]
[1743392980946,0.30661552,599.96,597.81,0.28921419]
[1743392981143,0.30661552,599.97,597.82,0.28921419]
[1743392981341,0.30661552,599.97,597.83,0.28921419]
[1743392981540,0.29053628,599.95,597.82,0.29053628]
[1743392981744,0.30662284,599.94,597.83,0.28921737]
[1743392981945,0.30662284,599.94,597.84,0.28921737]
[1743392982144,0.30662284,599.94,597.85,0.28921737]
[1743392982341,0.30662284,599.94,597.89,2.53489445]
[1743392982546,0.30662284,599.94,597.9,0.28921737]
[1743392982842,0.30662284,599.94,597.91,0.28921737]
[1743392983047,0.30662284,599.94,597.92,0.28921737]
[1743392983249,0.568,599.98,597.89,2.53489445]
[1743392983445,0.30662903,599.97,597.9,0.28922352]
[1743392983645,0.30662903,599.97,597.96,2.53489445]
[1743392983844,0.30662903,599.97,597.97,0.28922352]
[1743392984041,0.30662903,599.97,597.98,0.28922352]
[1743392984342,0.30662903,599.97,597.99,0.28922352]
[1743392984542,0.29052173,599.96,598.0,0.28922352]
[1743392984743,0.30662903,599.95,598.01,0.28922352]
[1743392984945,0.29052173,599.96,598.04,2.53489445]
[1743392985143,0.29052173,599.96,598.05,0.28922352]
[1743392986149,0.568,599.98,598.05,0.28922352]
[1743392986346,0.568,599.98,597.6,0.28922352]
[1743392986546,0.568,599.98,597.61,0.28922352]
[1743392986748,0.29036538,599.97,597.62,0.28922352]
[1743392986945,0.29036538,599.97,597.63,0.28922352]
[1743392987151,0.29036538,599.97,597.64,0.28922352]
[1743392987346,0.29036538,599.97,597.65,0.28922352]
[1743392987545,0.29036538,599.97,597.66,0.28922352]
[1743392987749,0.29036538,599.97,597.67,0.28922352]
[1743392987944,0.29036538,599.97,597.68,0.28922352]
[1743392988146,0.29036538,599.97,597.61,0.29036538]
[1743392988147,0.29036538,599.97,597.69,0.28922352]
[1743392988354,0.29036538,599.97,597.7,0.28922352]
[1743392988550,0.29036538,599.97,597.71,0.28922352]
[1743392988750,0.29036538,599.97,598.05,2.53489445]
[1743392988950,0.29036538,599.97,598.06,0.28922352]
[1743392989146,0.29036538,599.97,598.07,0.28922352]
[1743392989350,0.29036538,599.97,598.08,0.28922352]
[1743392989552,0.29036538,599.97,598.09,0.28922352]
[1743392989746,0.29036538,599.97,598.1,0.28922352]
[1743392989946,0.29036538,599.97,598.11,0.28922352]
[1743392990251,0.29036538,599.97,598.12,0.28922352]
[1743392990446,0.29036538,599.97,598.13,0.28922352]
[1743392990649,0.29036538,599.97,598.14,0.28922352]
[1743392990848,0.29036538,599.97,598.15,0.28922352]
[1743392991048,0.29036538,599.97,598.16,0.28922352]
[1743392991348,0.29036538,599.97,598.17,0.28922352]
[1743392991553,0.29036538,599.97,598.18,0.28922352]
[1743392991751,0.29036538,599.97,598.08,2.53489445]
[1743392991752,0.29036538,599.97,598.19,0.28922352]
[1743392991953,0.29036538,599.97,598.2,0.28922352]
[1743392992153,0.29036538,599.97,597.87,2.53489445]
[1743392992354,0.568,599.98,597.88,0.28908131]
[1743392992549,0.568,599.98,597.89,0.28908131]
[1743392992853,0.568,599.98,597.9,0.28908131]
[1743392993153,0.568,599.98,597.91,0.28908131]
[1743392993354,0.568,599.98,597.92,0.28908131]
[1743392993654,0.29030724,599.97,597.93,0.28908131]
[1743392993848,0.29030724,599.97,597.94,0.28908131]
[1743392994052,0.29030724,599.97,597.95,0.28908131]
[1743392994252,0.29030724,599.97,597.96,0.28908131]
[1743392994552,0.29030724,599.97,597.97,0.28908131]
[1743392994747,0.29030724,599.97,597.98,0.28908131]
[1743392994951,0.29030724,599.97,597.99,0.28908131]
[1743392995154,0.29030724,599.97,598.0,0.28908131]
[1743392995354,0.568,599.98,598.01,0.28908131]
[1743392995551,0.568,599.98,597.86,2.53489445]
[1743392995552,0.568,599.98,598.02,0.28908131]
[1743392995748,0.568,599.98,598.03,0.28908131]
[1743392996052,0.568,599.98,598.04,0.28908131]
[1743392996252,0.568,599.98,598.05,0.28908131]
[1743392996553,0.29030845,599.97,598.06,0.28908131]
[1743392996753,0.29030845,599.97,598.07,0.28908131]
[1743392996950,0.29030845,599.97,598.08,0.28908131]
[1743392997148,0.29030845,599.97,598.09,0.28908131]
[1743392997353,0.29030845,599.97,598.1,0.28908131]
[1743392997553,0.29030845,599.97,598.11,0.28908131]
[1743392997754,0.29030845,599.97,597.85,2.8252029]
[1743392997948,0.29030845,599.97,597.86,0.28908315]
[1743392998154,0.29030845,599.97,597.87,0.28908315]
[1743392998352,0.568,599.98,597.87,0.28908315]
[1743392998549,0.568,599.98,597.88,0.28908315]
[1743392998750,0.568,599.98,597.89,0.28908315]
[1743392998949,0.568,599.98,597.9,0.28908315]
[1743392999154,0.29030482,599.97,597.91,0.28908315]
[1743392999354,0.29030482,599.97,597.92,0.28908315]
[1743392999554,0.29030482,599.97,597.93,0.28908315]
[1743392999751,0.29030482,599.97,597.94,0.28908315]
[1743392999950,0.29030482,599.97,597.95,0.28908315]
[1743393000150,0.29030482,599.97,597.96,0.28908315]
[1743393000351,0.29030482,599.97,597.97,0.28908315]
[1743393000552,0.29030482,599.97,597.98,0.28908315]
[1743393000855,0.29030482,599.97,597.99,0.28908315]
[1743393001055,0.29030482,599.97,598.0,0.28908315]
[1743393001255,0.568,599.98,597.88,2.53489445]
[1743393001256,0.568,599.98,598.01,0.28908315]
[1743393001455,0.568,599.98,598.02,0.28908315]
[1743393001655,0.568,599.98,598.03,0.28908315]
[1743393001960,0.568,599.98,598.04,0.28908315]
[1743393002155,0.568,599.98,598.05,0.28908315]
[1743393002451,0.568,599.98,597.92,0.29042475]
[1743393002656,0.568,599.98,597.93,0.28904577]
[1743393002854,0.568,599.98,597.94,2.82394022]
[1743393003054,0.568,599.98,597.95,0.28904577]
[1743393003255,0.568,599.98,597.96,0.28904577]
[1743393003451,0.568,599.98,597.97,0.28904577]
[1743393003657,0.568,599.98,597.98,0.28904577]
[1743393003957,0.568,599.98,597.99,0.28904577]
[1743393004158,0.568,599.98,598.0,0.28904577]
[1743393004453,0.568,599.98,598.01,0.28904577]
[1743393004658,0.568,599.98,598.16,2.53489445]
[1743393004858,0.568,599.98,598.17,0.28904577]
[1743393005057,0.568,599.98,598.18,0.28904577]
[1743393005355,0.568,599.98,598.19,0.28904577]
[1743393005659,0.568,599.98,598.2,0.28904577]
[1743393005959,0.568,599.98,598.22,0.33432516]
[1743393006159,0.568,599.98,598.23,0.28904577]
[1743393006359,0.568,599.98,598.25,0.33430839]
[1743393006561,0.568,599.98,598.26,0.28904577]
[1743393006759,0.568,599.98,598.28,0.33429163]
[1743393006960,0.568,599.98,598.29,0.28904577]
[1743393007159,0.568,599.98,598.31,0.33427487]
[1743393007357,0.568,599.98,598.32,0.28904577]
[1743393007561,0.568,599.98,598.34,0.33425811]
[1743393007759,0.568,599.98,598.35,0.28904577]
[1743393007957,0.568,599.98,598.36,0.28904577]
[1743393008155,0.568,599.98,598.37,0.28904577]
[1743393008364,0.568,599.98,598.38,0.28904577]
[1743393008558,0.568,599.98,598.39,0.28904577]
[1743393008755,0.568,599.98,598.41,0.33421901]
[1743393008960,0.568,599.98,598.42,0.28904577]
[1743393009171,0.568,599.98,598.44,0.33420225]
[1743393009465,0.568,599.98,598.45,0.28904577]
[1743393009666,0.568,599.98,598.46,0.28904577]
[1743393009870,0.568,599.98,598.47,0.28904577]
[1743393010167,0.568,599.98,598.48,0.28904577]
[1743393010371,0.568,599.98,598.49,0.28904577]
[1743393010672,0.568,599.98,598.5,0.28904577]
[1743393010972,0.568,599.98,598.51,0.28904577]
[1743393011172,0.568,599.98,598.52,0.28904577]
[1743393011472,0.29023582,599.97,598.54,0.33414642]
[1743393011671,0.29023582,599.97,598.55,0.28907382]
[1743393011872,0.29023582,599.97,598.56,0.28907382]
[1743393012070,0.29023582,599.97,598.58,0.33412409]
[1743393012271,0.29023582,599.97,598.59,0.28907382]
[1743393012471,0.29023582,599.97,598.61,0.33410734]
[1743393012672,0.29023582,599.97,598.62,0.28907382]
[1743393012872,0.29023582,599.97,598.64,0.3340906]
[1743393013071,0.29023582,599.97,598.65,0.28907382]
[1743393013269,0.568,599.98,598.67,0.33407386]
[1743393013468,0.568,599.98,598.68,0.28907382]
[1743393013669,0.29035932,599.96,598.7,0.33405712]
[1743393013874,0.29035932,599.96,598.71,0.28907382]
[1743393014075,0.29035932,599.96,598.73,0.33404038]
[1743393014274,0.29035932,599.96,598.74,0.28907382]
[1743393014474,0.29035932,599.96,598.76,0.33402364]
[1743393014671,0.29035932,599.96,598.77,0.28907382]
[1743393014870,0.29035932,599.96,598.79,0.33400691]
[1743393015072,0.29035932,599.96,598.8,0.28907382]
[1743393015274,0.29035932,599.96,598.82,0.33399018]
[1743393015476,0.29035932,599.96,598.83,0.28907382]
[1743393015776,0.29035932,599.96,598.85,0.33397344]
[1743393015972,0.29035932,599.96,598.86,0.28907382]
[1743393016177,0.29035932,599.96,598.88,0.33395671]
[1743393016475,0.29035932,599.96,598.89,0.28907382]
[1743393016677,0.29035932,599.96,598.91,0.33393999]
[1743393016875,0.29035932,599.96,598.92,0.28907382]
[1743393017072,0.29035932,599.96,598.93,0.33392883]
[1743393017277,0.29035932,599.96,598.94,0.28907382]
[1743393017477,0.29035932,599.96,598.95,0.33391768]
[1743393017675,0.29035932,599.96,598.96,0.28907382]
[1743393018280,0.29035932,599.96,598.97,0.33390653]
[1743393018480,0.29035932,599.96,598.98,0.28907382]
[1743393019079,0.29035932,599.96,598.99,0.33389539]
[1743393019280,2.52093128,600.67,599.0,0.28907382]
[1743393019582,0.63941299,600.66,599.01,0.33388424]
[1743393019781,0.63941854,600.65,599.02,0.28907382]
[1743393019978,0.63942408,600.64,599.03,0.33387309]
[1743393020174,0.63942963,600.63,599.03,0.33387309]
[1743393020376,0.33298924,600.62,599.03,0.33387309]
[1743393020580,0.30646267,600.61,599.03,0.33387309]
[1743393020780,0.33300033,600.6,599.03,0.33387309]
[1743393020976,0.30646267,600.59,599.03,0.33387309]
[1743393021179,0.33301142,600.58,599.03,0.33387309]
[1743393021379,0.30646267,600.57,599.03,0.33387309]
[1743393021579,0.33302251,600.56,599.03,0.33387309]
[1743393021783,0.30646267,600.55,599.03,0.33387309]
[1743393021977,0.3330336,600.54,599.03,0.33387309]
[1743393022181,0.30646267,600.53,599.03,0.33387309]
[1743393022379,0.33304469,600.52,599.03,0.33387309]
[1743393022583,0.30646267,600.51,599.03,0.33387309]
[1743393022786,0.33305578,600.5,599.03,0.33387309]
[1743393022983,0.30646267,600.49,599.03,0.33387309]
[1743393023184,0.33307242,600.47,599.03,0.33387309]
[1743393028586,0.30658933,600.46,599.03,0.33387309]
[1743393028782,0.33308906,600.44,599.03,0.33387309]
[1743393028987,0.30658933,600.43,599.03,0.33387309]
[1743393029182,0.33310571,600.41,599.03,0.33387309]
[1743393029386,0.30658933,600.4,599.03,0.33387309]
[1743393029586,0.33312235,600.38,599.03,0.33387309]
[1743393029886,0.30658933,600.37,599.03,0.33387309]
[1743393030087,0.333139,600.35,599.03,0.33387309]
[1743393030283,0.30658933,600.34,599.03,0.33387309]
[1743393030583,0.33315565,600.32,599.03,0.33387309]
[1743393030790,0.30658933,600.31,599.03,0.33387309]
[1743393031184,0.33316674,600.3,599.03,0.33387309]
[1743393031385,0.30658933,600.29,599.03,0.33387309]
[1743393031685,0.33317785,600.28,599.03,0.33387309]
[1743393031984,0.30658933,600.27,599.03,0.33387309]
[1743393032188,0.33318895,600.26,599.03,0.33387309]
[1743393032386,0.30658933,600.25,599.03,0.33387309]
[1743393032587,0.33320005,600.24,599.03,0.33387309]
[1743393032890,0.30658933,600.23,599.03,0.33387309]
[1743393034684,0.33320005,600.24,599.03,0.33387309]
[1743393034891,0.29048899,600.22,599.03,0.31788229]
[1743393035091,0.30653232,600.21,599.03,0.31788229]
[1743393035292,0.30653232,600.21,599.04,0.28922338]
[1743393035593,0.30653232,600.21,599.05,0.33386194]
[1743393035891,0.30653232,600.21,599.06,0.28922338]
[1743393036089,0.30653232,600.21,599.07,0.3338508]
[1743393036291,0.29048899,600.22,599.07,0.3338508]
[1743393036487,0.30651085,600.21,599.08,0.28987132]
[1743393037093,0.30651085,600.21,599.07,0.3338508]
[1743393037492,0.59683714,600.2,599.07,0.3338508]
[1743393037693,0.30653716,600.19,599.07,0.3338508]
[1743393037896,0.30653716,600.19,599.08,0.28989809]
[1743393038394,0.30653794,600.18,599.07,0.3338508]
[1743393038588,0.30653794,600.19,599.08,0.28989818]
[1743393038889,0.30653794,600.18,599.08,0.28989818]
[1743393039093,0.30653794,600.19,599.08,0.28989818]
[1743393039294,0.30653794,600.18,599.08,0.28989818]
[1743393039495,0.30653794,600.19,599.08,0.28989818]
[1743393039797,0.30653794,600.18,599.08,0.28989818]
[1743393040090,0.30653794,600.19,599.07,0.3338508]
[1743393040294,0.30653794,600.18,599.07,0.3338508]
[1743393040594,0.30653794,600.17,599.07,0.3338508]
[1743393040795,0.30653794,600.19,599.07,0.3338508]
[1743393046397,0.30656208,600.18,599.07,0.3338508]
[1743393046593,0.30656208,600.23,599.07,0.3338508]
[1743393047300,0.523,600.22,599.07,0.3338508]
[1743393047596,0.30656208,600.21,599.07,0.3338508]
[1743393049100,0.81341505,600.22,599.07,0.3338508]
[1743393049301,0.30651658,600.21,599.07,0.3338508]
[1743393050197,0.30651658,600.21,599.08,0.28985541]
[1743393050403,0.30651658,600.21,599.09,0.33383965]
[1743393050599,0.29037507,600.2,599.1,0.28985541]
[1743393050796,0.29037507,600.2,598.98,0.29037507]
[1743393050797,0.29037507,600.2,599.11,0.33382851]
[1743393050998,0.30647892,600.19,599.12,0.28983967]
[1743393051198,0.30647892,600.19,599.13,0.33381736]
[1743393051401,0.30647892,600.19,599.14,0.28983967]
[1743393051600,0.30647892,600.19,599.15,0.33380622]
[1743393052405,0.30647892,600.21,599.15,0.33380622]
[1743393052702,0.30647892,600.2,599.16,0.28984317]
[1743393052903,0.30647892,600.21,599.16,0.28984317]
[1743393053103,0.30647892,600.2,599.16,0.28984317]
[1743393053300,0.30647892,600.19,599.16,0.28984317]
[1743393053504,0.30647892,600.18,599.16,0.28984317]
[1743393053701,0.30647892,600.19,599.16,0.28984317]
[1743393053904,0.30647892,600.18,599.16,0.28984317]
[1743393054103,0.30647892,600.19,599.16,0.28984317]
[1743393054302,0.30647892,600.17,599.16,0.28984317]
[1743393054501,0.30647892,600.18,599.16,0.28984317]
[1743393054705,0.30647892,600.17,599.16,0.28984317]
[1743393054902,0.30647892,600.19,599.17,0.33379508]
[1743393055107,0.30647892,600.18,599.17,0.33379508]
[1743393055303,0.30647892,600.19,599.17,0.33379508]
[1743393055500,0.30647892,600.17,599.17,0.33379508]
[1743393055700,0.30647892,600.16,599.17,0.33379508]
[1743393055902,0.30647892,600.21,599.17,0.33379508]
[1743393056408,0.29033873,600.2,599.17,0.33379508]
[1743393056603,0.30647892,600.19,599.17,0.33379508]
[1743393058407,0.30647892,600.21,599.17,0.33379508]
[1743393058607,0.30647892,600.2,599.17,0.33379508]
[1743393058803,0.30647892,600.21,599.17,0.33379508]
[1743393059205,0.29034115,600.19,599.17,0.33379508]
[1743393061115,0.523,600.22,599.17,0.33379508]
[1743393061314,0.30647173,600.21,599.17,0.33379508]
[1743393062415,0.29037991,600.2,599.17,0.33379508]
[1743393062715,0.30647173,600.19,599.17,0.33379508]
[1743393064009,0.29037991,600.2,599.17,0.33379508]
[1743393064313,0.523,600.22,599.17,0.33379508]
[1743393064516,0.2902455,600.19,599.17,0.33379508]
[1743393065716,0.2902455,600.19,599.18,0.2897964]
[1743393065913,0.2902455,600.19,599.19,0.33378394]
[1743393066617,0.2902455,600.19,599.2,0.28979066]
[1743393066815,0.2902455,600.19,599.21,0.3337728]
[1743393067014,0.30641888,600.18,599.22,0.28979066]
[1743393067216,0.30641888,600.18,599.23,0.33376166]
[1743393067413,0.30641888,600.21,599.24,0.28979066]
[1743393067614,0.30641888,600.21,599.25,0.33375052]
[1743393067918,0.29021887,600.17,599.26,0.28979066]
[1743393068117,0.30641888,600.16,599.26,0.62353561]
[1743393068314,0.30641888,600.16,599.26,0.33374495]
[1743393070427,0.30641888,600.21,599.26,0.33374495]
[1743393070726,0.29026124,600.15,599.26,0.33374495]
[1743393070927,0.30641888,600.14,599.26,0.33374495]
[1743393072128,0.30641888,600.14,599.27,0.28979115]
[1743393072320,0.30641888,600.14,599.27,0.62353053]
[1743393072523,0.30641888,600.14,599.28,0.28979115]
[1743393073528,0.29022129,600.13,599.27,0.33373938]
[1743393073729,0.29022129,600.13,599.28,0.28978941]
[1743393074828,0.29022129,600.13,599.29,0.33372824]
[1743393075128,0.523,600.22,599.3,0.28978941]
[1743393075428,0.523,600.22,599.31,0.62341966]
[1743393075728,0.523,600.22,599.32,0.28970256]
[1743393075928,0.523,600.22,599.33,0.33370597]
[1743393076129,0.523,600.22,599.34,0.28970256]
[1743393076530,0.523,600.22,599.33,0.33370597]
[1743393079632,0.29020919,600.21,599.33,0.33370597]
[1743393081132,0.30642748,600.2,599.33,0.33370597]
[1743393082528,0.30642748,600.21,599.33,0.33370597]
[1743393082733,0.29034721,600.19,599.33,0.33370597]
[1743393082932,0.30642748,600.18,599.33,0.33370597]
[1743393084234,0.29034721,600.19,599.33,0.33370597]
[1743393084435,0.30647863,600.18,599.33,0.33370597]
[1743393085529,0.30647863,600.21,599.33,0.33370597]
[1743393085834,0.523,600.22,599.33,0.33370597]
[1743393085835,0.30647863,600.2,599.33,0.33370597]
[1743393086031,0.30647863,600.21,599.33,0.33370597]
[1743393086330,0.30647863,600.2,599.33,0.33370597]
[1743393086536,0.29032298,600.2,599.33,0.33370597]
[1743393086731,0.30647863,600.19,599.33,0.33370597]
[1743393088531,0.30647863,600.18,599.33,0.33370597]
[1743393088734,0.30647863,600.21,599.33,0.33370597]
[1743393088938,0.30647863,600.2,599.33,0.33370597]
[1743393089129,0.30647863,600.19,599.34,0.28976376]
[1743393089332,0.29029392,600.2,599.34,0.28976376]
[1743393089531,0.30638357,600.19,599.35,0.28974503]
[1743393089733,0.30638357,600.19,599.34,0.28974503]
[1743393090337,0.30638357,600.19,599.33,0.33370597]
[1743393091537,0.30640974,600.18,599.33,0.33370597]
[1743393091732,0.30640974,600.19,599.34,0.28976738]
[1743393091930,0.30640974,600.18,599.33,0.33370597]
[1743393092136,0.30640974,600.19,599.34,0.28976276]
[1743393092338,0.30640974,600.18,599.34,0.28976276]
[1743393092539,0.30640974,600.19,599.34,0.28976276]
[1743393093038,0.30640974,600.19,599.33,0.33370597]
[1743393094539,0.30640974,600.61,599.33,0.33370597]
[1743393094733,0.63941007,600.6,599.33,0.33370597]
[1743393094938,0.63941561,600.59,599.33,0.33370597]
[1743393095139,0.63942116,600.58,599.33,0.33370597]
[1743393095340,0.30640974,600.57,599.33,0.33370597]
[1743393095944,0.33302251,600.56,599.33,0.33370597]
[1743393096138,0.30640974,600.55,599.33,0.33370597]
[1743393096336,0.3330336,600.54,599.33,0.33370597]
[1743393096541,0.30640974,600.53,599.33,0.33370597]
[1743393096738,0.33304469,600.52,599.33,0.33370597]
[1743393096944,0.30640974,600.51,598.47,2.53489445]
[1743393097142,0.33305578,600.5,598.57,0.33412967]
[1743393097338,0.30640974,600.49,598.92,0.29025881]
[1743393097538,0.33306687,600.48,598.93,0.33392883]
[1743393097738,0.30640974,600.47,598.93,0.33392883]
[1743393097941,0.33307797,600.46,598.93,0.33392883]
[1743393098141,0.30640974,600.45,598.93,0.33392883]
[1743393098341,0.33308906,600.44,598.93,0.33392883]
[1743393098539,0.30640974,600.43,598.93,0.33392883]
[1743393098742,0.33308906,600.44,598.93,0.33392883]
[1743393098945,0.30658615,600.43,598.93,0.33392883]
[1743393099242,0.33310016,600.42,598.93,0.33392883]
[1743393099444,0.30658615,600.41,598.93,0.33392883]
[1743393099643,0.33311125,600.4,598.93,0.33392883]
[1743393099846,0.30658615,600.39,598.93,0.33392883]
[1743393101045,0.33312235,600.38,598.93,0.33392883]
[1743393101245,0.30658615,600.37,598.93,0.33392883]
[1743393101445,0.33313345,600.36,598.93,0.33392883]
[1743393101639,0.30658615,600.35,598.93,0.33392883]
[1743393101840,0.33314455,600.34,598.93,0.33392883]
[1743393102145,0.30658615,600.33,598.93,0.33392883]
[1743393102346,0.33315565,600.32,598.93,0.33392883]
[1743393102751,0.3066066,600.31,598.93,0.33392883]
[1743393102950,0.33316674,600.3,598.93,0.33392883]
[1743393103246,0.3066066,600.29,598.93,0.33392883]
[1743393103648,0.5969308,600.29,598.93,0.33392883]
[1743393103847,0.3066066,600.28,598.93,0.33392883]
[1743393105543,0.63978445,600.28,598.93,0.33392883]
[1743393105741,0.3066066,600.27,598.93,0.33392883]
[1743393105945,0.33317785,600.28,598.93,0.33392883]
[1743393106144,0.30657083,600.27,598.93,0.33392883]
[1743393108550,0.63975423,600.27,598.93,0.33392883]
[1743393108749,0.33318895,600.26,598.93,0.33392883]
[1743393108943,0.30657083,600.25,598.93,0.33392883]
[1743393109144,0.33320005,600.24,598.93,0.33392883]
[1743393109350,0.30657083,600.23,598.93,0.33392883]
[1743393109548,0.33321115,600.22,598.93,0.33392883]
[1743393109750,0.30657083,600.21,598.93,0.33392883]
[1743393112054,0.33322781,600.19,598.93,0.33392883]
[1743393112254,0.30657083,600.18,598.93,0.33392883]
[1743393112656,0.33323891,600.17,598.93,0.33392883]